Cogmind - Beta 14 @@@ ROGUE MODE // 2024.10.31 @ 19:51:56 Player: Skergy Result: Destroyed by D-63 Destroyer with Heavy Rocket Launcher Performance ------------- Evolutions (4) 2000 Regions Visited (15) 3000 Robots Destroyed (25) 125 Value Destroyed (484) 484 Prototype IDs (38) 760 Alien Tech Used (0) 0 Bonus (854) 854 TOTAL SCORE: 7223 Bonus ------- Follower Combat Kills 74 Entered DSFs 500 Aligned with FarCom 300 Met Data Miner 300 Friendly Fire -320 Cogmind --------- Core Integrity 0/850 Matter 290/300 Energy 70/100 System Corruption 0% Temperature Cool (0) Movement Core (50) Location -5/Proximity Caves Parts ------- > --- POWER (2) -------- (None) > --- PROPULSION (5) --- (None) > --- UTILITY (6) ------ Improved Melee Analysis Suite > --- WEAPON (2) ------- Powered Hammer > --- INVENTORY (5) ---- Matter Compressor (23) Dirty Datajack (20) Great Maul Peak State ------------ > --- POWER ------------ Nuclear Core Light Fission Core > --- PROPULSION ------- Flexi-carbon Leg Airjet Airjet Xenon Bombardment Thruster Experimental Cesium-ion Thruster > --- UTILITY ---------- Weight Redist. System Experimental Sensor Array Improved Melee Analysis Suite Transmission Jammer Hacking Suite > --- WEAPON ----------- Dirty Datajack Dirty Datajack > --- INVENTORY -------- Matter Compressor Microactuators Hardened Medium Armor Plating Great Maul Powered Hammer [Rating: 65] Favorites ----------- Power Light Ion Engine Engine Light Ion Engine Power Core Nuclear Core Propulsion Aluminum Leg Leg Aluminum Leg Wheel Armored Wheel Hover Unit Airjet Flight Unit Flight Unit Utility Small Storage Unit Device Weight Redist. System Storage Small Storage Unit Processor Improved Melee Analysis Suite Hackware Hacking Suite Protection Hardened Medium Armor Plating Weapon Assault Rifle Energy Gun Small Laser Energy Cannon Latent Energy Streamer Ballistic Gun Assault Rifle Launcher Grenade Launcher Special Weapon Improved Remote Datajack Impact Weapon Powered Hammer Special Melee Weapon Dirty Datajack Build | -11 -10 -10 -9 -9 -9 -8 -8 -7 -7 -7 -7 -6 -6 -6 -5 ------- Run | Yrd Mat Min Mat Min Exi Min Mat Fac Was Fac DSF Fac Low Dat Pro Slots Evolved 8 | . . . 2 . . . 2 2 . . . 2 . . . Power 1 | . . . . . . . 1 . . . . . . . . Propulsion 3 | . . . 2 . . . . . . . . 1 . . . Utility 4 | . . . . . . . 1 2 . . . 1 . . . Weapon . | . . . . . . . . . . . . . . . . Parts Attached 68 | 6 11 1 3 . 2 5 5 3 3 12 . 7 2 . 8 Power 9 | 1 2 . . . . 2 1 . . 1 . 2 . . . Engine 4 | 1 2 . . . . 1 . . . . . . . . . Core 5 | . . . . . . 1 1 . . 1 . 2 . . . Reactor . | . . . . . . . . . . . . . . . . Propulsion 21 | 2 4 . 2 . . 3 1 . 1 5 . 1 . . 2 Treads . | . . . . . . . . . . . . . . . . Leg 11 | 2 2 . . . . 3 1 . . . . 1 . . 2 Wheel 1 | . . . . . . . . . . 1 . . . . . Hover 2 | . . . . . . . . . . 2 . . . . . Flight 7 | . 2 . 2 . . . . . 1 2 . . . . . Utility 16 | 1 2 . . . 1 . 1 2 1 5 . 2 . . 1 Device 9 | . 1 . . . 1 . 1 . 1 3 . 1 . . 1 Storage 1 | 1 . . . . . . . . . . . . . . . Processor 4 | . 1 . . . . . . 2 . 1 . . . . . Hackware 1 | . . . . . . . . . . . . 1 . . . Protection 1 | . . . . . . . . . . 1 . . . . . Artifact . | . . . . . . . . . . . . . . . . Weapon 22 | 2 3 1 1 . 1 . 2 1 1 1 . 2 2 . 5 Energy Gun 2 | 1 1 . . . . . . . . . . . . . . Energy Cannon 2 | . . . . . 1 . 1 . . . . . . . . Ballistic Gun 5 | 1 1 . 1 . . . . 1 . 1 . . . . . Ballistic Cannon . | . . . . . . . . . . . . . . . . Launcher 2 | . . 1 . . . . 1 . . . . . . . . Special Weapon 1 | . . . . . . . . . 1 . . . . . . Impact Weapon 5 | . . . . . . . . . . . . 2 . . 3 Slashing Weapon . | . . . . . . . . . . . . . . . . Piercing Weapon . | . . . . . . . . . . . . . . . . Special Melee Weapon 5 | . 1 . . . . . . . . . . . 2 . 2 Unidentified Prototypes 3 | . . . . . 1 . . . 1 . . 1 . . . Corrupted Parts 1 | . . . . . . . 1 . . . . . . . . System Corruption 10 | . . . . . . . 10 . . . . . . . . Parts Lost 37 | . 7 . . . . 4 10 . 3 1 . . . . 12 Power 5 | . 1 . . . . . 2 . . . . . . . 2 Propulsion 14 | . 2 . . . . 4 4 . . . . . . . 4 Utility 9 | . . . . . . . 1 . 3 . . . . . 5 Weapon 9 | . 4 . . . . . 3 . . 1 . . . . 1 Highest Loss Streak 9 | . 6 . . . . 3 9 . 3 1 . . . . 5 To Critical Strikes . | . . . . . . . . . . . . . . . . Average Slot Usage (%) 72 | . 83 83 100 100 97 94 65 36 21 39 72 78 83 86 49 Engine 6 | . 13 14 11 11 11 8 5 . . . . . . . . Core 2 | . . . . . . 2 5 . . 1 7 8 13 13 4 Leg 12 | . 26 . . . . 25 11 . . . . 6 6 6 3 Hover 2 | . . . . . . . . . . 5 15 13 13 13 4 Flight 9 | . . 28 44 44 44 13 5 . . 10 15 13 13 13 8 Device 8 | . . 14 11 11 9 11 18 7 7 11 19 18 20 20 9 Storage 7 | . 14 14 11 11 11 11 9 7 3 . . . . . . Processor 4 | . 5 . . . . . . 13 8 1 7 6 6 6 6 Hackware 1 | . . . . . . . . . . . . 5 6 6 5 Energy Gun 3 | . 9 . . . . . . . . . . . . . . Energy Cannon 1 | . . . . . 7 11 5 . . . . . . . . Ballistic Gun 6 | . 13 3 11 11 11 11 4 6 . . . . . . . Peak Build Rating 65 | 6 8 8 10 11 20 22 26 14 24 39 39 57 65 60 60 Average Rating 19 | 3 6 7 9 10 16 20 17 13 11 20 36 50 55 60 35 On Entrance 22 | . 6 7 8 10 11 20 20 4 14 8 39 35 53 60 60 Naked Turns 25 | . . . . . . . . . 18 7 . . . . . Heaviest Build 28 | 13 13 13 15 15 22 22 28 9 8 17 17 19 17 17 20 Greatest Support 36 | 20 20 14 22 22 22 36 36 9 9 17 17 17 17 17 21 Greatest Overweight (x) 2 | 1 1 . . . . 2 1 2 2 1 . 1 . . 1 Average Overweight (x) . | . . . . . . . . . . . . . . . . Largest Inventory Capacity 8 | 8 8 8 8 8 8 8 8 8 8 5 5 5 5 5 5 Average Capacity 7 | 7 8 8 8 8 8 8 8 8 6 5 5 5 5 5 5 Most Carried 8 | 6 8 8 7 6 8 6 5 2 5 5 5 5 5 5 5 Average Carried 5 | 4 7 6 5 5 6 5 3 2 4 4 5 4 4 5 4 Final Capacity 8 | 8 8 8 8 8 8 8 8 8 5 5 5 5 5 5 5 Final Carried 8 | 6 5 8 5 6 7 6 3 2 5 5 5 5 5 5 3 Class Distribution -------------------- 64% | Mutant 11% | Sprinter 8% | Scavenger-Sprinter 4% | Scavenger-Mutant 4% | Scavenger-Skirmisher 3% | Scout Dominant Class ---------------- Mutant | -10/Materials Mutant | -10/Mines Scavenger-Sprinter | -9/Materials Scavenger-Sprinter | -9/Mines Scavenger-Sprinter | -9/Exiles Scavenger-Mutant | -8/Mines Scavenger-Skirmisher | -8/Materials Mutant | -7/Factory Mutant | -7/Waste Sprinter | -7/Factory Sprinter | -7/DSF Ninja | -6/Factory Mutant | -6/Lower Caves Mutant | -6/Data Miner Sprinter | -5/Proximity Caves Resources | -11 -10 -10 -9 -9 -9 -8 -8 -7 -7 -7 -7 -6 -6 -6 -5 ----------- Run | Yrd Mat Min Mat Min Exi Min Mat Fac Was Fac DSF Fac Low Dat Pro Matter Collected 1054 | 217 280 . . . . 96 69 . . 215 . . . . 177 Remotely . | . . . . . . . . . . . . . . . . Salvage Created 719 | . 425 . . . . 133 62 . . . . . . . 99 Parts 38 | . 26 . . . . 4 5 . . . . . . . 3 Haulers Intercepted 1 | . 1 . . . . . . . . . . . . . . Recyclers Shooed . | . . . . . . . . . . . . . . . . Parts Field Recycled . | . . . . . . . . . . . . . . . . Retrieved Matter . | . . . . . . . . . . . . . . . . Parts Self-Destructed 1 | . . . . . . . . . . . . . . . 1 Prevented 1 | . . . . . . . . . . . . . . . 1 Kills | -11 -10 -10 -9 -9 -9 -8 -8 -7 -7 -7 -7 -6 -6 -6 -5 ------- Run | Yrd Mat Min Mat Min Exi Min Mat Fac Was Fac DSF Fac Low Dat Pro Combat Hostiles Destroyed 19 | . 16 . . . . 1 1 . . . . . . . 1 Guns 15 | . 15 . . . . . . . . . . . . . . AOE 4 | . 1 . . . . 1 1 . . . . . . . 1 Classes Destroyed 6 | . 4 . . . . 1 1 . . . . . . . . Worker 1 | . . . . . . 1 . . . . . . . . . Builder 1 | . . . . . . . 1 . . . . . . . . Hauler 1 | . 1 . . . . . . . . . . . . . . Watcher 1 | . 1 . . . . . . . . . . . . . . Swarmer 12 | . 12 . . . . . . . . . . . . . . Grunt 9 | . 4 . . . . 2 1 . . . . . . . 2 Best Kill Streak 4 | . 4 . . . . 2 2 . . . . . . . 1 Combat Bots Only 4 | . 4 . . . . 1 1 . . . . . . . 1 Max Kills in Single Turn 2 | . 2 . . . . 2 1 . . . . . . . 2 Gunslinging 1 | . 1 . . . . . . . . . . . . . . Exploded 1 | . 1 . . . . 1 1 . . . . . . . 1 Melee . | . . . . . . . . . . . . . . . . Uniques/NPCs Destroyed . | . . . . . . . . . . . . . . . . Combat | -11 -10 -10 -9 -9 -9 -8 -8 -7 -7 -7 -7 -6 -6 -6 -5 -------- Run | Yrd Mat Min Mat Min Exi Min Mat Fac Was Fac DSF Fac Low Dat Pro Hostile Shots Fired 285 | . 102 1 3 . . 38 57 . 2 . 5 . 8 . 69 Missed 118 | . 32 1 2 . . 21 19 . . . 5 . 6 . 32 Damage Taken 3654 | . 782 . 6 . . 383 942 . 68 55 . 46 43 . 1329 Core 1754 | . 248 . . . . 61 483 . 52 39 . . . . 871 Absorbed by Shields . | . . . . . . . . . . . . . . . . Regen/Repaired (Parts) 61 | . . . . . . . . . . 61 . . . . . Core Remaining (%) 56 | 100 . . . . . 84 12 . . . 87 . . . . Volleys Fired 76 | . 71 . . . . 2 3 . . . . . . . . Largest 2 | . 2 . . . . 2 2 . . . . . . . . Hottest 80 | . 60 . . . . 80 80 . . . . . . . . Shots Fired 138 | . 130 . . . . 4 4 . . . . . . . . Gun 133 | . 130 . . . . 2 1 . . . . . . . . Cannon 3 | . . . . . . 2 1 . . . . . . . . Launcher 2 | . . . . . . . 2 . . . . . . . . Special . | . . . . . . . . . . . . . . . . Kinetic 74 | . 71 . . . . 2 1 . . . . . . . . Thermal 56 | . 56 . . . . . . . . . . . . . . Explosive 2 | . . . . . . . 2 . . . . . . . . Electromagnetic 6 | . 3 . . . . 2 1 . . . . . . . . Robot Hit Streak 6 | . 6 . . . . 1 . . . . . . . . . Robot Miss Streak 8 | . 8 . . . . 1 2 . . . . . . . . Penetration Max . | . . . . . . . . . . . . . . . . Secondary Targets 5 | . 5 . . . . . . . . . . . . . . Max Gunslinging Chain 1 | . 1 . . . . . . . . . . . . . . Shots Hit Robots 82 | . 62 . . . . 1 . . . . . . 3 . 16 Core Hits 40 | . 23 . . . . 4 5 . . . . . 2 . 6 Critical Kills . | . . . . . . . . . . . . . . . . Critical Parts Destroyed . | . . . . . . . . . . . . . . . . Critical Strikes . | . . . . . . . . . . . . . . . . Melee Attacks 44 | . . . . . . . . . . . . 16 3 . 25 Impact 25 | . . . . . . . . . . . . 16 . . 9 Slashing . | . . . . . . . . . . . . . . . . Piercing 19 | . . . . . . . . . . . . . 3 . 16 Sneak Attacks 2 | . . . . . . . . . . . . . 2 . . Combat Hostiles 2 | . . . . . . . . . . . . . 2 . . Follow-up Attacks . | . . . . . . . . . . . . . . . . Damage Inflicted 1533 | . 801 . . . . 338 328 . . . . . 16 . 50 Guns 757 | . 745 . . . . 12 . . . . . . . . . Cannons . | . . . . . . . . . . . . . . . . Explosions 687 | . 56 . . . . 326 305 . . . . . . . . Melee 66 | . . . . . . . . . . . . . 16 . 50 Ramming 23 | . . . . . . . 23 . . . . . . . . Kinetic 425 | . 413 . . . . 12 . . . . . . . . . Thermal 411 | . 352 . . . . . 59 . . . . . . . . Explosive 134 | . . . . . . . 134 . . . . . . . . Electromagnetic 474 | . 36 . . . . 326 112 . . . . . . . . Impact . | . . . . . . . . . . . . . . . . Slashing . | . . . . . . . . . . . . . . . . Piercing 66 | . . . . . . . . . . . . . 16 . 50 Highest Corruption 13 | . . . . . . 5 13 . . . . . . . . Average Corruption 8 | . . . . . . 3 12 . . . . . . . . Corruption Purged . | . . . . . . . . . . . . . . . . Corruption Blocked . | . . . . . . . . . . . . . . . . Effects 10 | . . . . . . 2 8 . . . . . . . . Message Errors 2 | . . . . . . . 2 . . . . . . . . Matter Fused 2 | . . . . . . . 2 . . . . . . . . Heat Flow Errors 2 | . . . . . . 1 1 . . . . . . . . Energy Discharges 1 | . . . . . . . 1 . . . . . . . . Parts Rejected 1 | . . . . . . . 1 . . . . . . . . Data Loss (minor) 1 | . . . . . . 1 . . . . . . . . . Misdirections 1 | . . . . . . . 1 . . . . . . . . Overload Shots . | . . . . . . . . . . . . . . . . Overflow Damage 125 | . 81 . . . . 44 . . . . . . . . . Projectiles . | . . . . . . . . . . . . . . . . Explosions 125 | . 81 . . . . 44 . . . . . . . . . Melee . | . . . . . . . . . . . . . . . . Knockbacks . | . . . . . . . . . . . . . . . . Impact . | . . . . . . . . . . . . . . . . Kinetic . | . . . . . . . . . . . . . . . . Secondary . | . . . . . . . . . . . . . . . . Self-Inflicted Damage 243 | . 124 . . . . 87 32 . . . . . . . . Shots 4 | . 2 . . . . 1 1 . . . . . . . . Rammed 2 | . . . . . . . 2 . . . . . . . . Targets Rammed 2 | . . . . . . . 2 . . . . . . . . Kicked . | . . . . . . . . . . . . . . . . Crushed . | . . . . . . . . . . . . . . . . Highest Temperature 200 | . 19 . . . . 159 200 . . . . . 1 . 43 Average Temperature 34 | . 10 . . . . 53 59 . . . . . 1 . 28 Received Heat Transfer 763 | . 108 . . . . 171 270 . . . . . 18 . 196 Siege Activations . | . . . . . . . . . . . . . . . . Robots Corrupted . | . . . . . . . . . . . . . . . . Combat Hostiles . | . . . . . . . . . . . . . . . . Parts Fried 2 | . . . . . . 2 . . . . . . . . . Impact Corruptions . | . . . . . . . . . . . . . . . . Robots Melted . | . . . . . . . . . . . . . . . . Combat Hostiles . | . . . . . . . . . . . . . . . . Parts Melted 4 | . . . . . . . . . . . . . . . 4 Heat Transferred 825 | . 775 . . . . . 50 . . . . . . . . Parts Sabotaged . | . . . . . . . . . . . . . . . . Parts Stolen . | . . . . . . . . . . . . . . . . Parts Stripped . | . . . . . . . . . . . . . . . . Power Chain Reactions 1 | . 1 . . . . . . . . . . . . . . Latent Energy Used 520 | . . . . . . 331 189 . . . . . . . . LE Corruption 8 | . . . . . . 5 3 . . . . . . . . Alert | -11 -10 -10 -9 -9 -9 -8 -8 -7 -7 -7 -7 -6 -6 -6 -5 ------- Run | Yrd Mat Min Mat Min Exi Min Mat Fac Was Fac DSF Fac Low Dat Pro Peak Influence 364 | . 364 189 133 51 . 55 268 151 52 48 33 19 . . . Initial 121 | . . 114 73 51 . . 17 121 52 15 33 16 . . . Average 137 | . 248 126 87 51 . 25 92 130 40 29 33 17 . . . Maximum Alert Level 1 | . 1 . . . . . 1 . . . . . . . . Low Security (%) 69 | 100 29 100 100 100 . 100 93 100 100 100 100 100 . . . Level 1 30 | . 70 . . . . . 6 . . . . . . . . Level 2 . | . . . . . . . . . . . . . . . . Level 3 . | . . . . . . . . . . . . . . . . Level 4 . | . . . . . . . . . . . . . . . . Level 5 . | . . . . . . . . . . . . . . . . High Security . | . . . . . . . . . . . . . . . . Max Security . | . . . . . . . . . . . . . . . . Squads Dispatched 9 | . 2 1 . . . . 3 1 . 1 . . . . 1 Investigation 3 | . 1 1 . . . . . . . 1 . . . . . Extermination . | . . . . . . . . . . . . . . . . Reinforcement 5 | . 1 . . . . . 3 1 . . . . . . . Assault 1 | . . . . . . . . . . . . . . . 1 Garrison . | . . . . . . . . . . . . . . . . Intercept . | . . . . . . . . . . . . . . . . Searches Triggered . | . . . . . . . . . . . . . . . . Construction Impeded . | . . . . . . . . . . . . . . . . Haulers Reinforced . | . . . . . . . . . . . . . . . . Active Scanning Responses . | . . . . . . . . . . . . . . . . Cargo Convoy Interrupts . | . . . . . . . . . . . . . . . . Stealth | -11 -10 -10 -9 -9 -9 -8 -8 -7 -7 -7 -7 -6 -6 -6 -5 --------- Run | Yrd Mat Min Mat Min Exi Min Mat Fac Was Fac DSF Fac Low Dat Pro Distress Signals 5 | . 2 . 1 . . . . . . . . . . . 2 Communications Jammed . | . . . . . . . . . . . . . . . . Distress Signals . | . . . . . . . . . . . . . . . . Times Spotted 112 | . 31 4 6 . . 10 14 1 6 . 2 . 2 . 36 Peak Tracking Total 19 | . 5 5 6 . . 8 10 1 6 . 2 . 2 . 19 Tactical Retreats 12 | . 2 2 . . . 1 3 . 1 . . . . . 3 Traps | -11 -10 -10 -9 -9 -9 -8 -8 -7 -7 -7 -7 -6 -6 -6 -5 ------- Run | Yrd Mat Min Mat Min Exi Min Mat Fac Was Fac DSF Fac Low Dat Pro Traps Triggered 6 | . 1 . . . . . . 1 . 3 . 1 . . . Indirectly . | . . . . . . . . . . . . . . . . Trap Hack Attempts . | . . . . . . . . . . . . . . . . Triggered . | . . . . . . . . . . . . . . . . Disarmed . | . . . . . . . . . . . . . . . . Reprogrammed . | . . . . . . . . . . . . . . . . Reused . | . . . . . . . . . . . . . . . . Traps Extracted . | . . . . . . . . . . . . . . . . Installed . | . . . . . . . . . . . . . . . . Triggered 1 | . . . . . . . . . . . . . 1 . . Machines | -11 -10 -10 -9 -9 -9 -8 -8 -7 -7 -7 -7 -6 -6 -6 -5 ---------- Run | Yrd Mat Min Mat Min Exi Min Mat Fac Was Fac DSF Fac Low Dat Pro Machines Disabled 8 | . 4 . . . . . 3 . . . . . . . 1 Max in Single Turn 3 | . 2 . . . . . 3 . . . . . . . 1 Machines Repaired . | . . . . . . . . . . . . . . . . Machines Dismantled . | . . . . . . . . . . . . . . . . Machines Sabotaged . | . . . . . . . . . . . . . . . . Overloaded Fab Kills . | . . . . . . . . . . . . . . . . Hacking | -11 -10 -10 -9 -9 -9 -8 -8 -7 -7 -7 -7 -6 -6 -6 -5 --------- Run | Yrd Mat Min Mat Min Exi Min Mat Fac Was Fac DSF Fac Low Dat Pro Machines Accessed 16 | . 5 1 . . 1 . 2 . . 2 . 1 . 4 . Terminals 8 | . 4 . . . . . 2 . . 1 . 1 . . . Fabricators . | . . . . . . . . . . . . . . . . Repair Stations 1 | . . . . . . . . . . 1 . . . . . Recycling Units 1 | . 1 . . . . . . . . . . . . . . Scanalyzers . | . . . . . . . . . . . . . . . . Garrison Access . | . . . . . . . . . . . . . . . . Total Hacks 54 | . 8 1 . . 1 . 5 . . 6 . 1 . 32 . Successful 45 | . 4 1 . . 1 . 3 . . 3 . 1 . 32 . Failed 9 | . 4 . . . . . 2 . . 3 . . . . . Catastrophic 1 | . . . . . . . . . . 1 . . . . . Database Lockouts . | . . . . . . . . . . . . . . . . Manual 6 | . 5 . . . 1 . . . . . . . . . . Terminals 14 | . 7 . . . . . 5 . . 1 . 1 . . . Fabricators . | . . . . . . . . . . . . . . . . Repair Stations 5 | . . . . . . . . . . 5 . . . . . Recycling Units 1 | . 1 . . . . . . . . . . . . . . Scanalyzers . | . . . . . . . . . . . . . . . . Garrison Access . | . . . . . . . . . . . . . . . . Terminal Hacks 40 | . 1 1 . . 1 . 3 . . 1 . 1 . 32 . Record 12 | . . . . . . . 1 . . . . . . 11 . Part Schematic 12 | . . . . . . . . . . . . . . 12 . Robot Schematic 6 | . . . . . . . . . . . . . . 6 . Robot Analysis 1 | . 1 . . . . . . . . . . . . . . Prototype ID Bank 4 | . . . . . . . 1 . . . . . . 3 . Open Door 1 | . . 1 . . . . . . . . . . . . . Open DSF 2 | . . . . . . . . . . 1 . 1 . . . Emergency Access Points 1 | . . . . . . . 1 . . . . . . . . Derelict Proto ID Bank 1 | . . . . . 1 . . . . . . . . . . Fabricator Hacks . | . . . . . . . . . . . . . . . . Repair Station Hacks 2 | . . . . . . . . . . 2 . . . . . Scan Component 1 | . . . . . . . . . . 1 . . . . . Repair 1 | . . . . . . . . . . 1 . . . . . Recycling Unit Hacks . | . . . . . . . . . . . . . . . . Scanalyzer . | . . . . . . . . . . . . . . . . Garrison Access Hacks . | . . . . . . . . . . . . . . . . Unauthorized Hacks 3 | . 3 . . . . . . . . . . . . . . Terminals 2 | . 2 . . . . . . . . . . . . . . Botnet 2 | . 2 . . . . . . . . . . . . . . Fabricators . | . . . . . . . . . . . . . . . . Repair Stations . | . . . . . . . . . . . . . . . . Recycling Units 1 | . 1 . . . . . . . . . . . . . . Tunnel 1 | . 1 . . . . . . . . . . . . . . Scanalyzers . | . . . . . . . . . . . . . . . . Garrison Access . | . . . . . . . . . . . . . . . . Data Cores Recovered . | . . . . . . . . . . . . . . . . Used . | . . . . . . . . . . . . . . . . Hacking Detections 6 | . 3 . . . . . 1 . . 2 . . . . . Full Trace Events 1 | . . . . . . . . . . 1 . . . . . Feedback Events . | . . . . . . . . . . . . . . . . Feedback Blocked . | . . . . . . . . . . . . . . . . Robot Schematics Acquired 6 | . . . . . . . . . . . . . . 6 . Robots Built . | . . . . . . . . . . . . . . . . Authchips . | . . . . . . . . . . . . . . . . Time . | . . . . . . . . . . . . . . . . Total Robot Build Rating . | . . . . . . . . . . . . . . . . Part Schematics Acquired 12 | . . . . . . . . . . . . . . 12 . Parts Built . | . . . . . . . . . . . . . . . . Authchips . | . . . . . . . . . . . . . . . . Time . | . . . . . . . . . . . . . . . . Total Part Build Rating . | . . . . . . . . . . . . . . . . Parts Repaired 1 | . . . . . . . . . . 1 . . . . . Time 56 | . . . . . . . . . . 56 . . . . . Parts Recycled . | . . . . . . . . . . . . . . . . Recycled Matter . | . . . . . . . . . . . . . . . . Retrieved Matter . | . . . . . . . . . . . . . . . . Retrieved Components . | . . . . . . . . . . . . . . . . Parts Scanalyzed . | . . . . . . . . . . . . . . . . Part Schematics Acquired . | . . . . . . . . . . . . . . . . Parts Damaged . | . . . . . . . . . . . . . . . . Bothacking | -11 -10 -10 -9 -9 -9 -8 -8 -7 -7 -7 -7 -6 -6 -6 -5 ------------ Run | Yrd Mat Min Mat Min Exi Min Mat Fac Was Fac DSF Fac Low Dat Pro Used RIF Installer . | . . . . . . . . . . . . . . . . Robots Hacked . | . . . . . . . . . . . . . . . . Non-combat . | . . . . . . . . . . . . . . . . Combat . | . . . . . . . . . . . . . . . . Robot Hacks Applied . | . . . . . . . . . . . . . . . . Relay Couplers Released . | . . . . . . . . . . . . . . . . Fabnet Peak Effective % . | . . . . . . . . . . . . . . . . Robots Rewired . | . . . . . . . . . . . . . . . . Allies Hacked . | . . . . . . . . . . . . . . . . Hacks Repelled . | . . . . . . . . . . . . . . . . Allies | -11 -10 -10 -9 -9 -9 -8 -8 -7 -7 -7 -7 -6 -6 -6 -5 -------- Run | Yrd Mat Min Mat Min Exi Min Mat Fac Was Fac DSF Fac Low Dat Pro Total Allies 8 | . . . . 3 . . . . . . . . . . 5 Largest Group 3 | . . . . 3 3 3 . . . . . . . . 2 Highest-Rated Group 145 | . . . . 40 40 40 . . . . . . . . 145 Highest-Rated Ally 96 | . . . . 16 16 16 . . . . . . . . 96 Total Orders . | . . . . . . . . . . . . . . . . Ally Attacks 29 | . . . . . . 13 . . . . . . . . 16 Total Damage 620 | . . . . . . 129 . . . . . . . . 491 Kills 3 | . . . . . . . . . . . . . . . 3 Allies Corrupted . | . . . . . . . . . . . . . . . . Allies Melted . | . . . . . . . . . . . . . . . . Intel | -11 -10 -10 -9 -9 -9 -8 -8 -7 -7 -7 -7 -6 -6 -6 -5 ------- Run | Yrd Mat Min Mat Min Exi Min Mat Fac Was Fac DSF Fac Low Dat Pro Robot Analysis Total 1 | . 1 . . . . . . . . . . . . . . Derelict Logs Recovered 3 | . . 1 . 1 . . . . . . . . . . 1 Drone Launches . | . . . . . . . . . . . . . . . . Drone Recoveries . | . . . . . . . . . . . . . . . . Exploration | -11 -10 -10 -9 -9 -9 -8 -8 -7 -7 -7 -7 -6 -6 -6 -5 ------------- Run | Yrd Mat Min Mat Min Exi Min Mat Fac Was Fac DSF Fac Low Dat Pro Turns Passed 3030 | 79 1013 94 29 64 156 138 265 143 88 274 21 201 176 41 248 Spaces Moved 3927 | 53 610 239 84 81 264 110 244 184 129 390 70 325 422 106 616 Core 555 | 7 3 . . . . . 164 184 129 45 . . . . 23 Treads . | . . . . . . . . . . . . . . . . Legs 774 | 46 552 . . . . 94 80 . . . . . . . 2 Wheels 23 | . . . . . . . . . . 23 . . . . . Hover . | . . . . . . . . . . . . . . . . Flight 2575 | . 55 239 84 81 264 16 . . . 322 70 325 422 106 591 Fastest Speed 25 | 50 37 37 31 31 31 31 50 50 50 29 29 29 39 39 25 Average Speed 57 | 122 112 37 31 31 31 112 99 65 58 41 29 40 39 39 30 Slowest Speed 200 | 190 120 37 31 31 31 200 190 150 150 114 29 124 39 39 124 Overloaded Moves . | . . . . . . . . . . . . . . . . Propulsion Burnouts . | . . . . . . . . . . . . . . . . Robots Hopped 14 | . . 1 2 . . . . . . 10 . . 1 . . Cave-ins Triggered . | . . . . . . . . . . . . . . . . Time Travels 1 | . . . . . 1 . . . . . . . . . . Exploration Rate (%) 40 | 4 85 60 21 24 61 28 31 7 80 12 45 10 49 75 61 Regions Visited 15 Branch Regions 7 Pre-discovered Areas 4 | . 1 . . 1 . . . . . . . . . 1 1 Known Exits Taken 1 | . . . . . . . . . . 1 . . . . . Unknown Exits Taken 11 | 1 1 1 1 1 1 1 1 . . . . 1 1 1 . Scrap Searched 2 | . . . . . . 1 . . . . . . . . 1 Spaces Dug 19 | . . . . . . . . . . . . 15 . . 4 Terrain Destroyed 182 | . 29 . . . . 48 86 . . . . 15 . . 4 Melee 19 | . . . . . . . . . . . . 15 . . 4 Projectile . | . . . . . . . . . . . . . . . . AOE 163 | . 29 . . . . 48 86 . . . . . . . . Terrain Rammed . | . . . . . . . . . . . . . . . . Walls Destroyed . | . . . . . . . . . . . . . . . . Machines Disabled . | . . . . . . . . . . . . . . . . Actions | -11 -10 -10 -9 -9 -9 -8 -8 -7 -7 -7 -7 -6 -6 -6 -5 --------- Run | Yrd Mat Min Mat Min Exi Min Mat Fac Was Fac DSF Fac Low Dat Pro Total 4511 | 64 806 242 84 119 337 118 261 206 140 490 70 367 433 105 669 Wait 350 | . 101 1 . 38 70 . 8 19 6 72 . 13 5 . 17 Move 3885 | 52 609 236 79 80 263 109 243 184 128 369 69 324 419 105 616 Hop 14 | . . 1 2 . . . . . . 10 . . 1 . . Pick Up 24 | 6 7 2 . 1 . . . . 1 4 . 2 1 . . Fast Attach 40 | 6 5 1 . . 1 3 2 2 3 10 . 3 2 . 2 Attach 19 | . 3 . 3 . 1 . 3 1 . 2 . 4 . . 2 Detach 11 | . 1 1 . . 2 . . . 2 2 . 3 . . . Swap 9 | . 3 . . . . 2 . . . . . . . . 4 Drop 19 | . 6 . . . . 2 . . . 3 1 2 2 . 3 Fire 76 | . 71 . . . . 2 3 . . . . . . . . Melee 44 | . . . . . . . . . . . . 16 3 . 25 Ram 2 | . . . . . . . 2 . . . . . . . . Kick . | . . . . . . . . . . . . . . . . Crush . | . . . . . . . . . . . . . . . . Escape Stasis 18 | . . . . . . . . . . 18 . . . . . Rewire . | . . . . . . . . . . . . . . . . Trap . | . . . . . . . . . . . . . . . . Miscellaneous . | . . . . . . . . . . . . . . . . Route ------- -11/Scrapyard -10/Materials (discovered 5 exits: *Mat x3 / *Min x2) -10/Mines -9/Materials -9/Mines -9/Exiles (discovered 2 exits: [*Min x2]) -8/Mines -8/Materials -7/Factory -7/Waste -7/Factory (discovered 2 exits: [*Low] / DSF) -7/DSF -6/Factory -6/Lower Caves -6/Data Miner -5/Proximity Caves History --------- Turn | Location | Event 7 | -11/Scrapyard | Discovered new exit (range 15) 80 | -11/Scrapyard | Entered Materials 218 | -10/Materials | Discovered new exit (range 16) 289 | -10/Materials | Discovered new exit (range 4) 307 | -10/Materials | Build established: Mutant 387 | -10/Materials | Discovered new exit (range 16) 723 | -10/Materials | Core integrity fell below 50% 765 | -10/Materials | Discovered new exit (range 7) 942 | -10/Materials | Discovered new exit (range 14) 1028 | -10/Materials | Core integrity fell below 20% 1058 | -10/Materials | Lost 6 parts (1p2n3w) 1093 | -10/Materials | Entered Mines 1115 | -10/Mines | YI-UF0 nonchalantly dropped a Grenade Launcher on the ground 1136 | -10/Mines | Met a Derelict shopkeep closing up shop 1181 | -10/Mines | Discovered new exit (range 16) 1181 | -10/Mines | Learned Materials emergency access door positions 1187 | -10/Mines | Entered Materials 1187 | -9/Materials | Evolved 2 slots: Propulsion x2 1212 | -9/Materials | Discovered new exit (range 16) 1216 | -9/Materials | Entered Mines 1226 | -9/Mines | Learned location of Zion (-7) 1229 | -9/Mines | Assisted by bots powering up and referring to "LRC-V3" 1237 | -9/Mines | Found a damaged Exp. Sensor Array with a note attached 1238 | -9/Mines | Found Prototype Device 1241 | -9/Mines | Deemed a non-threat by the Exiles lab entrance 1241 | -9/Mines | Discovered new exit (range 5) 1280 | -9/Mines | Entered Exiles 1280 | -9/Exiles | Accompanied by 3 allies 1285 | -9/Exiles | Discovered new exit (range 15) 1292 | -9/Exiles | Met 8R-AWN 1298 | -9/Exiles | Met EX-HEX 1308 | -9/Exiles | Met EX-BIN 1311 | -9/Exiles | Aligned with FarCom system 1311 | -9/Exiles | Given EX-Vault access code 1318 | -9/Exiles | Opened EX-Vault 1321 | -9/Exiles | Found Prototype Device 1321 | -9/Exiles | Identified Chronowheel 1321 | -9/Exiles | Activated Chronowheel 1321 | -9/Exiles | Spacetime reconverged on an earlier point 1328 | -9/Exiles | Warned to stay clear of 0b10 Research branches 1335 | -9/Exiles | Found Latent Energy Streamer 1353 | -9/Exiles | Met EX-DEC 1365 | -9/Exiles | Discovered new exit (range 10) 1436 | -9/Exiles | Left Exiles lab with Latent Energy Streamer 1436 | -9/Exiles | Entered Mines 1436 | -8/Mines | Accompanied by 3 allies 1473 | -8/Mines | Lost 3 parts (3n) 1494 | -8/Mines | Lost 3 allies 1569 | -8/Mines | Discovered new exit (range 5) 1574 | -8/Mines | Entered Materials 1574 | -8/Materials | Evolved 2 slots: Power x1, Utility x1 1685 | -8/Materials | System corruption reached 10% 1749 | -8/Materials | Core integrity fell below 50% 1781 | -8/Materials | Lost 9 parts (2p4n3w) 1824 | -8/Materials | Core integrity fell below 20% 1835 | -8/Materials | Discovered new exit (range 10) 1839 | -8/Materials | Entered Factory 1839 | -7/Factory | Evolved 2 slots: Utility x2 1982 | -7/Factory | Sucked down chute 1982 | -7/Factory | Entered Waste 1986 | -7/Waste | Spotted C-40 Crusher 1989 | -7/Waste | Spotted C-40 Crusher 2011 | -7/Waste | Spotted C-40 Crusher 2023 | -7/Waste | Spotted C-40 Crusher 2023 | -7/Waste | Spotted C-40 Crusher 2034 | -7/Waste | Crushed by Compactor (1 part destroyed, 1 dropped) 2036 | -7/Waste | Spotted C-40 Crusher 2037 | -7/Waste | Crushed by Compactor (1 part destroyed, 1 dropped) 2049 | -7/Waste | Discovered new exit (range 14) 2068 | -7/Waste | Lost 3 parts (3u) 2070 | -7/Waste | Entered Factory 2177 | -7/Factory | Repaired Broken Exp. Cesium-ion Thruster? 2277 | -7/Factory | Discovered new exit (range 13) 2344 | -7/Factory | Identified exit to DSF 2344 | -7/Factory | Entered DSF 2358 | -7/DSF | Discovered new exit (range 15) 2365 | -7/DSF | Entered Factory 2365 | -6/Factory | Evolved 2 slots: Propulsion x1, Utility x1 2412 | -6/Factory | Identified Exp. Sensor Array 2533 | -6/Factory | Discovered new exit (range 9) 2566 | -6/Factory | Entered Lower Caves 2661 | -6/Lower Caves | Ambushed by wild Derelicts 2740 | -6/Lower Caves | A Derelict revealed a hidden shortcut to meet someone special 2742 | -6/Lower Caves | Entered Data Miner 2742 | -6/Data Miner | Discovered new exit (range 6) 2750 | -6/Data Miner | Met Data Miner 2762 | -6/Data Miner | Learned location of Section 7 (-3) 2762 | -6/Data Miner | Acquired the access code to Warlord's prototype stash 2769 | -6/Data Miner | Received God Mode back door access code from Data Miner 2783 | -6/Data Miner | Entered Proximity Caves 2892 | -5/Proximity Caves | Spotted B-75 Beast 2895 | -5/Proximity Caves | Lost 5 parts (2p2n1u) 2939 | -5/Proximity Caves | Attracted the attention of an 0b10 outpost 2957 | -5/Proximity Caves | Learned location of Warlord (-5) 2993 | -5/Proximity Caves | Core integrity fell below 50% 3011 | -5/Proximity Caves | Core integrity fell below 20% 3031 | -5/Proximity Caves | Destroyed by D-63 Destroyer with Heavy Rocket Launcher Last Messages --------------- 02992_ Splicing G-50 Soldier... Unable to locate active power source. 02995_ C-30 ARC bursts open, deploying its payload. 02995_ G-67 Veteran unfolds itself. 02995_ L-41 Fighter unfolds itself. 02995_ G-50 Soldier unfolds itself. 02995_ Splicing G-50 Soldier... Tweaking power source heat flow. 02995_ G-50 Soldier Lgt. Angular Momentum Engine breaks down. 03001_ Splicing D-63 Destroyer... Rewriting IFF filter. 03002_ Splicing I-47 Archangel... 03002_ I-47 Archangel system unaffected. 03003_ Dispatcher launches Target Drone into the air. 03005_ Target Drone destroyed. 03006_ Hacking Suite destroyed. 03007_ Exp. Cesium-ion Thruster destroyed. 03009_ Dirty Datajack destroyed. 03013_ Y-64 Sentinel springs to life. 03018_ Test Aggregator disabled. Map ----- +----------------------------------------------------+ | | | | | | | | | | | | | ?????????????????????????????????????????????????? | | ?????????????????????????????????????????????????? | | ?????????????????????????????????????????????????? | | ?????????????????????????????????????????????????? | | ?????????????????????????????????????????????????? | | ?????????????????????????????????????????????????? | | ?????????????????????????????????????????????????? | | ?????????????????????????????????????????????????? | | ?????????????????????????????????????????????????? | | ?????????????????????????????????????????????????? | | ?????????????????????????????????????????????????? | | ?????????????????????????????????????????????????? | | ?????????????????????????????????????????????????? | | ?????????????????????????????????????????????????? | | ?????????????????????????????????????????????????? | | ?????????????????????????????????????????????????? | | ?????????????????????????????????????????????????? | | ?????????????????????#########???????????????????? | | ?????????????????????#"""""""#???? ??????????????? | | ?????????????????????#" "@ "#??? ???????????? | | ?????????????????????#" " " "#? ??????????? | | ?????????????????????#""" """#? ??????????? | | ?????????????????????#""" """#? ?????????? | | ??????????????????#??#"" ""# ?????????? | | ??????????????????# ?#"" ""# ????????? | | ??????????????????# #"" ""# ????????? | | ?????##?????####### ####/#### ???????? | | ????? ?? " d " ???????? | | ????? ???????? | | ????# #????????? | | ????# #????????? | | ????# #????????? | | ????# #????????? | | ??### #????????? | | ??# #????????? | | ??# #????????? | | ??# #????????? | | ??# #????????? | | ??# #### #????????? | | ??# #?????????????? | | ??# #?????????????? | | ??# #?????????????? | | ### #?????????????? | | " #?????????????? | +----------------------------------------------------+ Best States ------------- Heat Dissipation 37 Energy Generation 27 Energy Capacity 310 Matter Stores 300 Matter Capacity 300 Sight Range 18 Robot Scan Range 20 Terrain Scan Density 10 Jamming Range 12 Power Amplification 30 Additional Mass Support 6 Armor Coverage 225 Melee Speed Boost 20 Evasion (%) 65 Melee Accuracy 6 Offensive Hacking 10 Item Schematics ----------------- Combat Drone Bay | -6/Data Miner | Free Lgt. Regenerative Plating | -6/Data Miner | Free Cld. Gravmag System | -6/Data Miner | Free Imp. Matter Compressor | -6/Data Miner | Free Imp. KE Penetrator | -6/Data Miner | Free Impulse Thruster | -6/Data Miner | Free Adv. Cryofiber Web | -6/Data Miner | Free Hardcell Cannon | -6/Data Miner | Free Disruptor Cannon | -6/Data Miner | Free Adv. Thermal Shield | -6/Data Miner | Free Gamma Rifle | -6/Data Miner | Free Adv. Heavy Treads | -6/Data Miner | Free Robot Schematics ------------------ R-10 Processor | -6/Data Miner | Free M-22 Extractor | -6/Data Miner | Free L-41 Fighter | -6/Data Miner | Free A-15 Conveyor | -6/Data Miner | Free L-61 Swordsman | -6/Data Miner | Free Y-64 Sentinel | -6/Data Miner | Free Fabricated ------------ Nothing Alien Tech Used ----------------- None Achievements -------------- The Oracle Challenges ------------ None Game ------ Seed ComponentAntigravProjector Manual? 0 Play Time 01:18:51 Cumulative 36.7 hours Start 2024.10.30 @ 14:31:27 End 2024.10.31 @ 19:51:56 Sessions 4 Manual Loads 0 Difficulty Rogue Special Mode None Game No. 35 Rogue 35 Adventurer 0 Explorer 0 Win Type - Total 1 Types 1/0/0/0/0/0/0/0/0 Lore% 16 Gallery% 33 Achievement% 29 Wizard Run 0 Options --------- Layout 0 ASCII 0 Keyboard 1 Movement Numpad Keybinds 0 Fullscreen 1 Font 24/Smallcaps Map View 76x50 Zoom Use 0% Tactical HUD 1 Map Filters NONE Filters NONE Steam 1 RUN: 620d1b74-75ec-46c7-8204-defaa4460dfe